Cogmind - Beta 13 @@@ ROGUE MODE // 2024.05.16 @ 19:09:26 Player: BrainTooSmol Result: Self-destructed Performance ------------- Evolutions (1) 500 Regions Visited (2) 400 Robots Destroyed (16) 80 Value Destroyed (339) 339 Prototype IDs (0) 0 Alien Tech Used (0) 0 Bonus (0) 0 TOTAL SCORE: 1319 Bonus ------- None Cogmind --------- Core Integrity 285/400 Matter 288/300 Energy 72/100 System Corruption 0% Temperature Warm (123) Movement Core (100) Ox1 Location -9/Materials Parts ------- > --- POWER (1) -------- (None) > --- PROPULSION (3) --- (None) > --- UTILITY (3) ------ Small Storage Unit Seismic Detector > --- WEAPON (2) ------- (None) > --- INVENTORY (8) ---- Light Treads Hacking Suite Light Assault Rifle Peak State ------------ > --- POWER ------------ Ion Engine > --- PROPULSION ------- Light Treads Hover Unit Hover Unit > --- UTILITY ---------- Small Storage Unit Improved Terrain Scanner Seismic Detector > --- WEAPON ----------- Light Assault Rifle Light Assault Rifle > --- INVENTORY -------- Light Treads Hover Unit Hacking Suite Mining Laser [Rating: 11] Favorites ----------- Power Light Ion Engine Engine Light Ion Engine Propulsion Light Treads Treads Light Treads Leg Aluminum Leg Wheel Wheel Hover Unit Hover Unit Utility Small Storage Unit Device Seismic Detector Storage Small Storage Unit Weapon Light Assault Rifle Ballistic Gun Light Assault Rifle Special Weapon Mining Laser Build | -11 -10 -9 ------- Run | Yrd Mat Mat Slots Evolved 2 | . . 2 Power . | . . . Propulsion 1 | . . 1 Utility 1 | . . 1 Weapon . | . . . Parts Attached 14 | 3 4 7 Power 1 | . 1 . Engine 1 | . 1 . Core . | . . . Reactor . | . . . Propulsion 6 | 2 1 3 Treads 1 | 1 . . Leg . | . . . Wheel 2 | 1 1 . Hover 3 | . . 3 Flight . | . . . Utility 2 | 1 . 1 Device 2 | 1 . 1 Storage . | . . . Processor . | . . . Hackware . | . . . Protection . | . . . Artifact . | . . . Weapon 5 | . 2 3 Energy Gun . | . . . Energy Cannon . | . . . Ballistic Gun 2 | . 1 1 Ballistic Cannon . | . . . Launcher . | . . . Special Weapon 3 | . 1 2 Impact Weapon . | . . . Slashing Weapon . | . . . Piercing Weapon . | . . . Special Melee Weapon . | . . . Unidentified Prototypes . | . . . Parts Lost 10 | . 2 8 Power 2 | . 1 1 Propulsion 5 | . 1 4 Utility 1 | . . 1 Weapon 2 | . . 2 Highest Loss Streak 7 | . 1 7 To Critical Strikes . | . . . Average Slot Usage (%) 95 | . 99 88 Engine 12 | . 13 10 Treads 12 | . 14 9 Wheel 12 | . 13 9 Hover 1 | . . 4 Device 16 | . 14 21 Storage 12 | . 14 11 Ballistic Gun 24 | . 27 17 Special Weapon 1 | . . 4 Naked Turns . | . . . Heaviest Build 14 | 11 13 14 Greatest Support 20 | 20 20 20 Greatest Overweight (x) . | . . . Average Overweight (x) . | . . . Largest Inventory Capacity 8 | 8 8 8 Average Capacity 8 | 8 8 8 Most Carried 8 | 5 8 7 Average Carried 5 | 3 5 5 Final Capacity 8 | 8 8 8 Final Carried 7 | 4 7 3 Class Distribution -------------------- 86% | Mutant 13% | Scavenger-Mutant Dominant Class ---------------- Mutant | -10/Materials Mutant | -9/Materials Resources | -11 -10 -9 ----------- Run | Yrd Mat Mat Matter Collected 404 | 248 125 31 Remotely . | . . . Salvage Created 486 | 65 363 58 Parts 37 | 9 25 3 Haulers Intercepted . | . . . Recyclers Shooed . | . . . Parts Field Recycled . | . . . Retrieved Matter . | . . . Parts Self-Destructed . | . . . Prevented . | . . . Kills | -11 -10 -9 ------- Run | Yrd Mat Mat Combat Hostiles Destroyed 7 | . 6 1 Guns 7 | . 6 1 Classes Destroyed 5 | 1 3 1 Tunneler 6 | 3 3 . Operator 2 | . 2 . Watcher 1 | . 1 . Grunt 6 | . 6 . Sentry 1 | . . 1 Best Kill Streak 2 | 1 2 1 Combat Bots Only 2 | . 2 1 Max Kills in Single Turn 1 | 1 1 1 Gunslinging . | . . . Exploded . | . . . Melee . | . . . Uniques/NPCs Destroyed . | . . . Combat | -11 -10 -9 -------- Run | Yrd Mat Mat Hostile Shots Fired 74 | . 36 38 Missed 11 | . 6 5 Damage Taken 732 | . 334 398 Core 147 | . 32 115 Absorbed by Shields . | . . . Core Remaining (%) 93 | 100 87 . Volleys Fired 78 | 9 47 22 Largest 2 | 2 2 2 Hottest 100 | 40 40 100 Shots Fired 137 | 18 94 25 Gun 125 | 18 94 13 Cannon . | . . . Launcher . | . . . Special 12 | . . 12 Kinetic 125 | 18 94 13 Thermal 12 | . . 12 Explosive . | . . . Electromagnetic . | . . . Robot Hit Streak 13 | 6 13 4 Robot Miss Streak 2 | 2 2 1 Penetration Max . | . . . Secondary Targets . | . . . Shots Hit Robots 91 | 12 74 5 Core Hits 36 | 5 28 3 Critical Kills 1 | . 1 . Critical Parts Destroyed . | . . . Critical Strikes 1 | . 1 . Destroy 1 | . 1 . Melee Attacks . | . . . Impact . | . . . Slashing . | . . . Piercing . | . . . Sneak Attacks . | . . . Combat Hostiles . | . . . Follow-up Attacks . | . . . Damage Inflicted 708 | 92 579 37 Guns 708 | 92 579 37 Cannons . | . . . Explosions . | . . . Melee . | . . . Ramming . | . . . Kinetic 708 | 92 579 37 Thermal . | . . . Explosive . | . . . Electromagnetic . | . . . Impact . | . . . Slashing . | . . . Piercing . | . . . Highest Corruption . | . . . Average Corruption . | . . . Corruption Purged . | . . . Corruption Blocked . | . . . Overload Shots . | . . . Overflow Damage . | . . . Projectiles . | . . . Explosions . | . . . Melee . | . . . Knockbacks . | . . . Impact . | . . . Kinetic . | . . . Secondary . | . . . Self-Inflicted Damage . | . . . Shots . | . . . Rammed . | . . . Targets Rammed . | . . . Kicked . | . . . Crushed . | . . . Highest Temperature 169 | . 18 169 Average Temperature 37 | . 6 55 Received Heat Transfer 423 | . 180 243 Siege Activations . | . . . Robots Corrupted . | . . . Combat Hostiles . | . . . Parts Fried . | . . . Impact Corruptions . | . . . Robots Melted . | . . . Combat Hostiles . | . . . Parts Melted . | . . . Heat Transferred . | . . . Parts Sabotaged . | . . . Parts Stolen . | . . . Parts Stripped . | . . . Power Chain Reactions . | . . . Alert | -11 -10 -9 ------- Run | Yrd Mat Mat Peak Influence 129 | 15 129 42 Initial 9 | . 9 . Average 39 | 7 63 4 Maximum Alert Level . | . . . Low Security (%) 100 | 100 100 100 Level 1 . | . . . Level 2 . | . . . Level 3 . | . . . Level 4 . | . . . Level 5 . | . . . High Security . | . . . Max Security . | . . . Squads Dispatched 4 | . 4 . Investigation 1 | . 1 . Extermination . | . . . Reinforcement 3 | . 3 . Assault . | . . . Garrison . | . . . Intercept . | . . . Searches Triggered . | . . . Construction Impeded . | . . . Haulers Reinforced . | . . . Active Scanning Responses . | . . . Cargo Convoy Interrupts . | . . . Stealth | -11 -10 -9 --------- Run | Yrd Mat Mat Distress Signals . | . . . Communications Jammed . | . . . Distress Signals . | . . . Times Spotted 15 | . 11 4 Peak Tracking Total 3 | . 2 3 Tactical Retreats . | . . . Traps | -11 -10 -9 ------- Run | Yrd Mat Mat Traps Triggered . | . . . Indirectly . | . . . Trap Hack Attempts . | . . . Triggered . | . . . Disarmed . | . . . Reprogrammed . | . . . Reused . | . . . Traps Extracted . | . . . Installed . | . . . Triggered . | . . . Machines | -11 -10 -9 ---------- Run | Yrd Mat Mat Machines Disabled . | . . . Max in Single Turn . | . . . Machines Repaired . | . . . Machines Dismantled . | . . . Machines Sabotaged . | . . . Overloaded Fab Kills . | . . . Hacking | -11 -10 -9 --------- Run | Yrd Mat Mat Machines Accessed 4 | . 4 . Terminals 4 | . 4 . Fabricators . | . . . Repair Stations . | . . . Recycling Units . | . . . Scanalyzers . | . . . Garrison Access . | . . . Total Hacks 8 | . 8 . Successful 4 | . 4 . Failed 4 | . 4 . Catastrophic 1 | . 1 . Database Lockouts . | . . . Manual 8 | . 8 . Terminals 8 | . 8 . Fabricators . | . . . Repair Stations . | . . . Recycling Units . | . . . Scanalyzers . | . . . Garrison Access . | . . . Terminal Hacks 1 | . 1 . Part Schematic 1 | . 1 . Fabricator Hacks . | . . . Repair Station Hacks . | . . . Recycling Unit Hacks . | . . . Scanalyzer . | . . . Garrison Access Hacks . | . . . Unauthorized Hacks 3 | . 3 . Terminals 3 | . 3 . Track 1 | . 1 . Botnet 1 | . 1 . Operators 1 | . 1 . Fabricators . | . . . Repair Stations . | . . . Recycling Units . | . . . Scanalyzers . | . . . Garrison Access . | . . . Data Cores Recovered . | . . . Used . | . . . Hacking Detections 4 | . 4 . Full Trace Events 1 | . 1 . Feedback Events . | . . . Feedback Blocked . | . . . Robot Schematics Acquired . | . . . Robots Built . | . . . Authchips . | . . . Time . | . . . Total Robot Build Rating . | . . . Part Schematics Acquired 1 | . 1 . Parts Built . | . . . Authchips . | . . . Time . | . . . Total Part Build Rating . | . . . Parts Repaired . | . . . Time . | . . . Parts Recycled . | . . . Recycled Matter . | . . . Retrieved Matter . | . . . Retrieved Components . | . . . Parts Scanalyzed . | . . . Part Schematics Acquired . | . . . Parts Damaged . | . . . Bothacking | -11 -10 -9 ------------ Run | Yrd Mat Mat Used RIF Installer . | . . . Robots Hacked . | . . . Non-combat . | . . . Combat . | . . . Robot Hacks Applied . | . . . Relay Couplers Released . | . . . Fabnet Peak Effective % . | . . . Robots Rewired . | . . . Allies Hacked . | . . . Hacks Repelled . | . . . Allies | -11 -10 -9 -------- Run | Yrd Mat Mat Total Allies . | . . . Largest Group . | . . . Highest-Rated Group . | . . . Highest-Rated Ally . | . . . Total Orders . | . . . Ally Attacks . | . . . Total Damage . | . . . Kills . | . . . Allies Corrupted . | . . . Allies Melted . | . . . Intel | -11 -10 -9 ------- Run | Yrd Mat Mat Robot Analysis Total . | . . . Derelict Logs Recovered . | . . . Drone Launches . | . . . Drone Recoveries . | . . . Exploration | -11 -10 -9 ------------- Run | Yrd Mat Mat Turns Passed 1426 | 132 846 448 Spaces Moved 487 | 61 375 51 Core . | . . . Treads 475 | 61 375 39 Legs . | . . . Wheels . | . . . Hover 12 | . . 12 Flight . | . . . Fastest Speed 52 | 160 160 52 Average Speed 157 | 160 160 134 Slowest Speed 160 | 160 160 160 Overloaded Moves . | . . . Propulsion Burnouts . | . . . Robots Hopped . | . . . Cave-ins Triggered . | . . . Exploration Rate (%) 18 | 4 44 7 Regions Visited 2 Branch Regions . Pre-discovered Areas . | . . . Known Exits Taken . | . . . Unknown Exits Taken 2 | 1 1 . Scrap Searched . | . . . Spaces Dug 5 | . . 5 Terrain Destroyed 8 | . . 8 Melee . | . . . Projectile 8 | . . 8 AOE . | . . . Terrain Rammed . | . . . Walls Destroyed . | . . . Machines Disabled . | . . . Actions | -11 -10 -9 --------- Run | Yrd Mat Mat Total 1010 | 83 545 382 Wait 421 | 5 115 301 Move 485 | 60 374 51 Hop . | . . . Pick Up 7 | 2 5 . Fast Attach 1 | 1 . . Attach 8 | 2 2 4 Detach . | . . . Swap 5 | . 2 3 Drop 5 | 4 . 1 Fire 78 | 9 47 22 Melee . | . . . Ram . | . . . Kick . | . . . Crush . | . . . Escape Stasis . | . . . Rewire . | . . . Trap . | . . . Miscellaneous . | . . . Route ------- -11/Scrapyard -10/Materials (discovered 3 exits: [*Mat] / [*Min] / [*Sub]) -9/Materials History --------- Turn | Location | Event 6 | -11/Scrapyard | Discovered new exit (range 3) 133 | -11/Scrapyard | Entered Materials 314 | -10/Materials | Build established: Mutant 463 | -10/Materials | Discovered new exit (range 9) 908 | -10/Materials | Discovered new exit (range 8) 973 | -10/Materials | Discovered new exit (range 3) 979 | -10/Materials | Entered another Materials area 979 | -9/Materials | Evolved 2 slots: Propulsion x1, Utility x1 1427 | -9/Materials | Self-destructed Last Messages --------------- 01350_ Wheel destroyed. 01354_ Y-45 Defender destroyed. 01356_ Acquired 31 matter. 01362_ Dropped Lgt. Treads. 01376_ T-07 Excavator is excavating. 01376_ U-05 Engineer lays Concrete. 01377_ U-05 Engineer builds a Wall. 01392_ K-01 Serf collects debris. 01398_ R-06 Scavenger collects Lgt. Treads. 01401_ K-01 Serf collects debris. 01401_ R-06 Scavenger collects Lgt. Treads. 01406_ K-01 Serf collects debris. 01417_ Hover Unit destroyed. 01417_ Ion Engine destroyed. 01419_ Critical hit (Burn: +37). 01420_ Imp. Terrain Scanner destroyed. 01421_ Hover Unit destroyed. 01423_ Mining Laser destroyed. 01423_ Critical hit (Burn: +37). 01425_ Lgt. Assault Rifle destroyed. Map ----- +----------------------------------------------------+ | ?????????????????????"???#???? ?## #??## | | ?????????????????????????? ??? ### #???# | | ?????????????????? ? "?"??# ????# #???? | | ????????????????????? ?? ## #### #???? | | ???????????????????#???? ## ?#?# #?##? | | ???????????????????# ?? ??# #??# #?#?# | | ??????????????????????#???# ?### #???? | | ???????????????????????#### #??# #?### | | ?????????????????? ####### #### #?#?# | | ????????????????? ###?? | | ????????????????? #???# | | ????????????#???? #???? | | ???????????????? ? ?####### #####?#?? | | ????????????????????#?##### #?##??##? | | ?????????????????????? # # #????#??? | | ?????????????????????? #???????? | | ???????????????????#?? # #???????? | | ????????????????? ?#??# ?# ##????#?? | | ???????????????? ???###### ##???#??? | | ?????????????????????#######+#######??#??? | | ???????????????? ????## % % #??????? | | ???????????????????#??# #??????? | | ?????????????#????????# #??????? | | ????????????#???????#?# gg""" """ #??????? | | ??????????????????????# """ """ #??????? | | ??????????????????????# @""" """ #??????? | | ????????? ?????????#?# g #? ????? | | ??????????????????????#############?#????? | | ???????????????? ??????? ? ?????????#????? | | ??????????????#????? ????????????????????? | | ??????????????#? ????? ??? ??????????????? | | ?????????????????????#???????? ??????????? | | ?????????????????????????????????????????? | | ?????????????????????????????? ??????????? | | ???????????????????????#????#????????????? | | ????????????? ?????? ????? ??????????????? | | ?????????????????????????????????????????? | | ?????????????????????????????????????????? | | ?????????????????????????????????????????? | | ?????????????????????????????????????????? | | ????????????????????? ???????????????????? | | ?????????????????????????????????????????? | | ?????????????????????????????????????????? | | ?????????????????????????????????????????? | | ?????????????????????????????????????????? | | ?????????????????????????????????????????? | | ?????????????????????????????????????????? | | ?????????????????????????????????????????? | | ?????????????????????????????????????????? | | ?????????????????????????????????????????? | +----------------------------------------------------+ Best States ------------- Heat Dissipation 28 Energy Generation 10 Energy Capacity 250 Matter Stores 300 Matter Capacity 300 Sight Range 16 Terrain Scan Range 16 Terrain Scan Density 10 Evasion (%) 45 Recoil Reduction 1 Item Schematics ----------------- ECM Suite | -10/Materials | Hacked Robot Schematics ------------------ None Fabricated ------------ Nothing Alien Tech Used ----------------- None Achievements -------------- None Challenges ------------ None Game ------ Seed XenonPortableRedistributor Manual? 0 Play Time 00:08:43 Cumulative 110.9 hours Start 2024.05.16 @ 19:02:28 End 2024.05.16 @ 19:09:26 Sessions 1 Manual Loads 0 Difficulty Rogue Special Mode None Game No. 72 Rogue 72 Adventurer 0 Explorer 0 Win Type - Total 2 Types 1/0/0/1/0/0/0/0/0 Lore% 60 Gallery% 52 Achievement% 48 Wizard Run 0 Options --------- Layout 0 ASCII 0 Keyboard 0 Movement Mouse Keybinds 0 Fullscreen 1 Font 18/SmallcapsGlow Map View 76x50 Zoom Use 0% Tactical HUD 1 Map Filters NONE Filters NONE Steam 1 RUN: e98474b4-ee4a-49b3-bab6-a735e65203e3